fUST/lending_fUST_20240711
["ID","MTS","AMOUNT","RATE_DAILY","PERIOD"]
[331709399,1720675848382,-500.0,0.00027671,7]
[331709400,1720675848391,-2116.465707,0.00027671,7]
[331709401,1720675848401,-500.0,0.00027671,7]
[331709402,1720675848411,-954.995707,0.00027671,2]
[331709403,1720675848420,-500.0,0.00027671,7]
[331709404,1720675848429,-285.92165846,0.00027671,7]
[331709405,1720675848438,-954.995704,0.00027671,2]
[331709406,1720675848447,-3320.96384,0.00027671,7]
[331709407,1720675848456,-1337.17,0.00027671,7]
[331709408,1720675848466,-770.772724,0.00027671,7]
[331709409,1720675848475,-3320.963847,0.00027671,7]
[331709410,1720675848485,-770.772716,0.00027671,7]
[331709411,1720675848494,-544.16,0.00027671,7]
[331709412,1720675848503,-627.83,0.00027671,7]
[331709413,1720675848512,-500.0,0.00027671,7]
[331709414,1720675848523,-500.0,0.00027671,7]
[331709415,1720675848531,-489.30334911,0.00027671,7]
[331709416,1720675848541,-500.0,0.00027671,7]
[331709417,1720675848550,-2577.05,0.00027671,7]
[331709418,1720675848559,-500.0,0.00027671,7]
[331709419,1720675848568,-500.0,0.00027671,7]
[331709420,1720675848578,-151.0,0.00027671,7]
[331709421,1720675848587,-348.67485687,0.00027671,7]
[331709422,1720675848596,-513.45,0.00027671,7]
[331709423,1720675848606,-500.0,0.00027671,7]
[331709424,1720675848617,-825.42,0.00027671,7]
[331709425,1720675848626,-6376.09,0.00027671,7]
[331709426,1720675848635,-500.0,0.00027671,7]
[331709427,1720675848645,-500.0,0.00027671,7]
[331709428,1720675848654,-500.0,0.00027671,7]
[331709429,1720675848663,-676.11548,0.00027671,7]
[331709430,1720675848673,-151.0,0.00027671,7]
[331709431,1720675848682,-562.35,0.00027671,7]
[331709432,1720675848692,-676.11548,0.00027671,7]
[331709433,1720675848701,-500.0,0.00027671,7]
[331709434,1720675848710,-279.3335,0.00027671,7]
[331709435,1720675848720,-279.3335,0.00027671,7]
[331709436,1720675848730,-500.0,0.00027671,7]
[331709437,1720675848740,-509.38177595,0.00027671,7]
[331709438,1720675848750,-504.55016843,0.00027671,7]
[331709439,1720675848759,-500.0,0.00027671,2]
[331709440,1720675848768,-500.0,0.00027671,2]
[331709441,1720675848778,-609.85873627,0.00027671,7]
[331709442,1720675848787,-151.0,0.00027878,7]
[331709443,1720675848796,-676.11548,0.00027878,7]
[331709444,1720675848806,-151.0,0.00027878,7]
[331709445,1720675848816,-676.115485,0.00027878,7]
[331709446,1720675848825,-279.3335,0.00027878,7]
[331709447,1720675848834,-279.3335,0.00027878,7]
[331709448,1720675848843,-194775.81683976,0.00027878,3]
[331709449,1720675848854,-1361.21103541,0.000279,2]
[331709450,1720675848866,-517.15279832,0.00027945,2]
[331709451,1720675848876,-500.0,0.00027945,7]
[331709452,1720675848886,-500.0,0.00027945,7]
[331709453,1720675848897,-830.69,0.00027945,7]
[331709454,1720675848907,-380.63778886,0.00027945,7]
[331709455,1720675848916,-692.66,0.00027945,7]
[331709456,1720675848925,-640.0,0.00027945,7]
[331709457,1720675848935,-1034.31,0.00027945,7]
[331709458,1720675848945,-500.0,0.00027945,7]
[331709459,1720675848954,-421.27826806,0.00027945,7]
[331709460,1720675848964,-616.81,0.00027945,7]
[331709461,1720675848974,-554.18,0.00027945,7]
[331709462,1720675848984,-566.22,0.00027945,7]
[331709463,1720675848994,-500.0,0.00027945,7]
[331709464,1720675849003,-520.74,0.00027945,7]
[331709465,1720675849012,-500.0,0.00027945,7]
[331709466,1720675849021,-500.0,0.00027945,7]
[331709467,1720675849031,-882.82,0.00027945,7]
[331709468,1720675849040,-500.0,0.00027945,7]
[331709469,1720675849050,-1567.07,0.00027945,7]
[331709470,1720675849059,-4468.81,0.00027945,7]
[331709471,1720675849069,-500.0,0.00027945,7]
[331709472,1720675849078,-500.0,0.00027945,7]
[331709473,1720675849087,-555.99480381,0.00027945,7]
[331709474,1720675849096,-843.36,0.00027945,7]
[331709475,1720675849106,-500.0,0.00027945,7]
[331709476,1720675849117,-1089.85,0.00027945,7]
[331709477,1720675849127,-631.79,0.00027945,7]
[331709478,1720675849136,-500.0,0.00027945,7]
[331709479,1720675849146,-1347.75,0.00027945,4]
[331709480,1720675849155,-500.0,0.00027945,7]
[331709481,1720675849164,-500.0,0.00027945,2]
[331709482,1720675849174,-500.0,0.00027945,7]
[331709483,1720675849183,-500.0,0.00027945,7]
[331709484,1720675849193,-500.0,0.00027945,7]
[331709485,1720675849202,-2751.95,0.00027945,7]
[331709486,1720675849212,-500.0,0.00027945,7]
[331709487,1720675849221,-1505.0,0.00027945,7]
[331709488,1720675849230,-500.0,0.00027945,7]
[331709489,1720675849318,-533.48997038,0.00027945,2]
[331709490,1720675849328,-500.0,0.00027945,7]
[331709491,1720675849337,-500.0,0.00027945,7]
[331709492,1720675849347,-500.0,0.00027945,7]
[331709493,1720675849355,-240.35979658,0.00027945,7]
[331709494,1720675849366,-500.0,0.00027945,7]
[331709495,1720675849375,-500.0,0.00027945,7]
[331709496,1720675849385,-1337.17,0.00027945,7]
[331709497,1720675849394,-544.16,0.00027945,7]
[331709498,1720675849403,-627.83,0.00027945,7]
[331709499,1720675849413,-573.56082225,0.00027945,7]
[331709500,1720675849422,-500.0,0.00027945,7]
[331709501,1720675849431,-2577.05,0.00027945,7]
[331709502,1720675849440,-500.0,0.00027945,7]
[331709503,1720675849450,-500.0,0.00027945,7]
[331709504,1720675849459,-513.45,0.00027945,7]
[331709505,1720675849468,-500.0,0.00027945,7]
[331709506,1720675849477,-825.42,0.00027945,7]
[331709507,1720675849486,-6376.09,0.00027945,7]
[331709508,1720675849495,-500.0,0.00027945,7]
[331709509,1720675849505,-500.0,0.00027945,7]
[331709510,1720675849514,-500.0,0.00027945,7]
[331709511,1720675849523,-562.35,0.00027945,7]
[331709512,1720675849532,-474.93921109,0.00027945,7]
[331709513,1720675849542,-500.0,0.00027945,7]
[331709514,1720675849551,-500.0,0.00027945,2]
[331709515,1720675849560,-500.0,0.00027945,2]
[331709516,1720675849570,-391.80627157,0.00027958,2]
[331709517,1720675849580,-19633.41811921,0.0002799,2]
[331709518,1720675849589,-526.29790288,0.00028,2]
[331709519,1720675849599,-268.70466552,0.00028,2]
[331709520,1720675849608,-500.0,0.00028,2]
[331709521,1720675849618,-1747.10967462,0.00028056,2]
[331709522,1720675849627,-500.0,0.00028219,7]
[331709523,1720675849636,-500.0,0.00028219,7]
[331709524,1720675849646,-830.69,0.00028219,7]
[331709525,1720675849656,-692.66,0.00028219,7]
[331709526,1720675849665,-1034.31,0.00028219,7]
[331709527,1720675849674,-500.0,0.00028219,7]
[331709528,1720675849684,-616.81,0.00028219,7]
[331709529,1720675849693,-554.18,0.00028219,7]
[331709530,1720675849703,-566.22,0.00028219,7]
[331709531,1720675849712,-500.0,0.00028219,7]
[331709532,1720675849721,-520.74,0.00028219,7]
[331709533,1720675849731,-511.65017843,0.00028219,7]
[331709534,1720675849740,-500.0,0.00028219,7]
[331709535,1720675849750,-882.82,0.00028219,7]
[331709536,1720675849759,-500.0,0.00028219,7]
[331709537,1720675849769,-355.83798545,0.00028219,7]
[331709538,1720675850079,-400.56619145,0.00028219,7]
[331709539,1720675850711,-196.54650804,0.00026848,2]
[331709540,1720675850724,-182.989071,0.00027397,7]
[331709541,1720675850735,-182.989071,0.00027397,7]
[331709542,1720675850747,-182.989071,0.00027397,7]
[331709543,1720675850759,-182.989071,0.00027397,7]
[331709544,1720675850772,-182.989071,0.00027671,7]
[331709545,1720675850784,-182.989071,0.00027878,7]
[331709546,1720675850795,-810.6658231,0.00028219,7]
[331709547,1720675850807,-4468.81,0.00028219,7]
[331709548,1720675850819,-500.0,0.00028219,7]
[331709549,1720675850830,-500.0,0.00028219,7]
[331709550,1720675850842,-843.36,0.00028219,7]
[331709551,1720675850854,-500.0,0.00028219,7]
[331709552,1720675850868,-1089.85,0.00028219,7]
[331709553,1720675850881,-631.79,0.00028219,7]
[331709554,1720675850891,-500.0,0.00028219,7]
[331709555,1720675850901,-1347.75,0.00028219,4]
[331709556,1720675850911,-469.84587989,0.00028219,7]
[331709557,1720675850920,-500.0,0.00028219,2]
[331709558,1720675850930,-500.0,0.00028219,7]
[331709559,1720675850939,-500.0,0.00028219,7]
[331709560,1720675850949,-500.0,0.00028219,7]
[331709561,1720675850959,-2751.95,0.00028219,7]
[331709562,1720675850968,-508.75326275,0.00028219,7]
[331709563,1720675850977,-1505.0,0.00028219,7]
[331709564,1720675850986,-500.0,0.00028219,7]
[331709565,1720675850996,-500.0,0.00028219,7]
[331709566,1720675851005,-500.0,0.00028219,7]
[331709567,1720675851014,-500.0,0.00028219,7]
[331709568,1720675851024,-500.0,0.00028219,7]
[331709569,1720675851034,-500.0,0.00028219,7]
[331709570,1720675851043,-1337.17,0.00028219,7]
[331709571,1720675851052,-544.16,0.00028219,7]
[331709572,1720675851062,-627.83,0.00028219,7]
[331709573,1720675851071,-500.0,0.00028219,7]
[331709574,1720675851080,-2577.05,0.00028219,7]
[331709575,1720675851090,-500.0,0.00028219,7]
[331709576,1720675851099,-500.0,0.00028219,7]
[331709577,1720675851108,-513.45,0.00028219,7]
[331709578,1720675851120,-500.0,0.00028219,7]
[331709579,1720675851129,-825.42,0.00028219,7]
[331709580,1720675851256,-6376.09,0.00028219,7]
[331709581,1720675851318,-500.0,0.00028219,7]
[331709582,1720675851328,-500.0,0.00028219,7]
[331709583,1720675851338,-500.0,0.00028219,7]
[331709584,1720675851347,-562.35,0.00028219,7]
[331709585,1720675851357,-500.0,0.00028219,2]
[331709586,1720675851369,-500.0,0.00028219,2]
[331709587,1720675851378,-500.0,0.00028493,7]
[331709588,1720675851387,-500.0,0.00028493,7]
[331709589,1720675851396,-830.69,0.00028493,7]
[331709590,1720675851405,-692.66,0.00028493,7]
[331709591,1720675851413,-1034.31,0.00028493,7]
[331709592,1720675851422,-500.0,0.00028493,7]
[331709593,1720675851431,-616.81,0.00028493,7]
[331709594,1720675851440,-566.22,0.00028493,7]
[331709595,1720675851449,-554.18,0.00028493,7]
[331709596,1720675851458,-500.0,0.00028493,7]
[331709597,1720675851468,-520.74,0.00028493,7]
[331709598,1720675851476,-500.0,0.00028493,7]
[331709599,1720675851486,-882.82,0.00028493,7]
[331709600,1720675851495,-500.0,0.00028493,7]
[331709601,1720675851504,-1567.07,0.00028493,7]
[331709602,1720675851513,-4468.81,0.00028493,7]
[331709603,1720675851522,-500.0,0.00028493,7]
[331709604,1720675851531,-500.0,0.00028493,7]
[331709605,1720675851540,-843.36,0.00028493,7]
[331709606,1720675851549,-1089.85,0.00028493,7]
[331709607,1720675851558,-631.79,0.00028493,7]
[331709608,1720675851567,-500.0,0.00028493,7]
[331709609,1720675851577,-1347.75,0.00028493,4]
[331709610,1720675851586,-500.0,0.00028493,2]
[331709611,1720675851596,-500.0,0.00028493,7]
[331709612,1720675851605,-500.0,0.00028493,7]
[331709613,1720675851615,-500.0,0.00028493,7]
[331709614,1720675851624,-2751.95,0.00028493,7]
[331709615,1720675851633,-1505.0,0.00028493,7]
[331709616,1720675851642,-500.0,0.00028493,7]
[331709617,1720675851651,-500.0,0.00028493,7]
[331709618,1720675851660,-500.0,0.00028493,7]
[331709619,1720675851670,-500.0,0.00028493,7]
[331709620,1720675851680,-500.0,0.00028493,7]
[331709621,1720675851689,-429.68827956,0.00028493,7]
[331709622,1720675851698,-1337.17,0.00028493,7]
[331709623,1720675851707,-544.16,0.00028493,7]
[331709624,1720675851717,-627.83,0.00028493,7]
[331709625,1720675851726,-500.0,0.00028493,7]
[331709626,1720675851736,-2577.05,0.00028493,7]
[331709627,1720675851745,-500.0,0.00028493,7]
[331709628,1720675851754,-500.0,0.00028493,7]
[331709629,1720675851764,-513.45,0.00028493,7]
[331709630,1720675851773,-825.42,0.00028493,7]
[331709631,1720675851782,-6376.09,0.00028493,7]
[331709632,1720675851792,-500.0,0.00028493,7]
[331709633,1720675851801,-500.0,0.00028493,7]
[331709634,1720675851810,-562.35,0.00028493,7]
[331709635,1720675851819,-578.11557591,0.00028493,2]
[331709636,1720675851828,-500.0,0.00028493,2]
[331709637,1720675851837,-799.23663089,0.000285,2]
[331709638,1720675851846,-3000.0,0.000287,2]
[331709639,1720675851856,-3000.0,0.0002871,2]
[331709640,1720675851865,-3000.0,0.0002872,2]
[331709641,1720675851874,-3000.0,0.0002873,2]
[331709642,1720675851883,-3000.0,0.0002874,2]
[331709643,1720675851893,-3000.0,0.0002875,2]
[331709644,1720675851903,-300.0,0.00028755,2]
[331709645,1720675851912,-3000.0,0.0002876,2]
[331709646,1720675851922,-500.0,0.00028767,7]
[331709647,1720675851931,-500.0,0.00028767,7]
[331709648,1720675851941,-830.69,0.00028767,7]
[331709649,1720675851950,-692.66,0.00028767,7]
[331709650,1720675851959,-1034.31,0.00028767,7]
[331709651,1720675851967,-500.0,0.00028767,7]
[331709652,1720675851977,-616.81,0.00028767,7]
[331709653,1720675851986,-566.22,0.00028767,7]
[331709654,1720675851995,-554.18,0.00028767,7]
[331709655,1720675852004,-500.0,0.00028767,7]
[331709656,1720675852013,-520.74,0.00028767,7]
[331709657,1720675852022,-882.82,0.00028767,7]
[331709658,1720675852032,-500.0,0.00028767,7]
[331709659,1720675852040,-1567.07,0.00028767,7]
[331709660,1720675852049,-4468.81,0.00028767,7]
[331709661,1720675852058,-500.0,0.00028767,7]
[331709662,1720675852067,-500.0,0.00028767,7]
[331709663,1720675852076,-843.36,0.00028767,7]
[331709664,1720675852085,-1089.85,0.00028767,7]
[331709665,1720675852094,-631.79,0.00028767,7]
[331709666,1720675852103,-500.0,0.00028767,7]
[331709667,1720675852112,-1347.75,0.00028767,4]
[331709668,1720675852122,-500.0,0.00028767,2]
[331709669,1720675852131,-500.0,0.00028767,7]
[331709670,1720675852140,-500.0,0.00028767,7]
[331709671,1720675852149,-500.0,0.00028767,7]
[331709672,1720675852158,-2751.95,0.00028767,7]
[331709673,1720675852167,-1505.0,0.00028767,7]
[331709674,1720675852176,-500.0,0.00028767,7]
[331709675,1720675852184,-500.0,0.00028767,7]
[331709676,1720675852194,-500.0,0.00028767,7]
[331709677,1720675852203,-500.0,0.00028767,7]
[331709678,1720675852212,-500.0,0.00028767,7]
[331709679,1720675852221,-1337.17,0.00028767,7]
[331709680,1720675852230,-544.16,0.00028767,7]
[331709681,1720675852239,-627.83,0.00028767,7]
[331709682,1720675852248,-500.0,0.00028767,7]
[331709683,1720675852257,-2577.05,0.00028767,7]
[331709684,1720675852266,-500.0,0.00028767,7]
[331709685,1720675852276,-500.0,0.00028767,7]
[331709686,1720675852285,-513.45,0.00028767,7]
[331709687,1720675852295,-825.42,0.00028767,7]
[331709688,1720675852305,-6376.09,0.00028767,7]
[331709689,1720675852316,-500.0,0.00028767,7]
[331709690,1720675852325,-500.0,0.00028767,7]
[331709691,1720675852335,-562.35,0.00028767,7]
[331709692,1720675852344,-500.0,0.00028767,2]
[331709693,1720675852353,-1158.64777838,0.0002877,2]
[331709694,1720675852362,-89658.87541192,0.0002877,2]
[331709695,1720675852373,-3000.0,0.0002877,2]
[331709696,1720675852382,-3000.0,0.0002878,2]
[331709697,1720675852391,-3000.0,0.0002879,2]
[331709698,1720675852400,-3608.295898,0.000288,2]
[331709699,1720675852410,-301.44757931,0.00028828,2]
[331709700,1720675852419,-500.0,0.00029,2]
[331709701,1720675852429,-173.70369,0.00029,2]
[331709702,1720675852438,-500.0,0.00029041,7]
[331709703,1720675852447,-489.20309489,0.00029041,7]
[331709704,1720675852457,-830.69,0.00029041,7]
[331709705,1720675852466,-692.66,0.00029041,7]
[331709706,1720675852475,-1034.31,0.00029041,7]
[331709707,1720675852484,-500.0,0.00029041,7]
[331709708,1720675852493,-616.81,0.00029041,7]
[331709709,1720675852502,-566.22,0.00029041,7]
[331709710,1720675852512,-554.18,0.00029041,7]
[331709711,1720675852521,-500.0,0.00029041,7]
[331709712,1720675852530,-520.74,0.00029041,7]
[331709713,1720675852539,-882.82,0.00029041,7]
[331709714,1720675852549,-500.0,0.00029041,7]
[331709715,1720675852558,-1567.07,0.00029041,7]
[331709716,1720675852567,-4468.81,0.00029041,7]
[331709717,1720675852576,-500.0,0.00029041,7]
[331709718,1720675852586,-500.0,0.00029041,7]
[331709719,1720675852595,-843.36,0.00029041,7]
[331709720,1720675852604,-1089.85,0.00029041,7]
[331709721,1720675852615,-631.79,0.00029041,7]
[331709722,1720675852624,-500.0,0.00029041,7]
[331709723,1720675852633,-1347.75,0.00029041,4]
[331709724,1720675852642,-585.28300967,0.00029041,2]
[331709725,1720675852651,-500.0,0.00029041,7]
[331709726,1720675852660,-500.0,0.00029041,7]
[331709727,1720675852669,-500.0,0.00029041,7]
[331709728,1720675852679,-2751.95,0.00029041,7]
[331709729,1720675852688,-1505.0,0.00029041,7]
[331709730,1720675852697,-500.0,0.00029041,7]
[331709731,1720675852706,-500.0,0.00029041,7]
[331709732,1720675852715,-500.0,0.00029041,7]
[331709733,1720675852724,-500.0,0.00029041,7]
[331709734,1720675852735,-500.0,0.00029041,7]
[331709735,1720675852744,-1337.17,0.00029041,7]
[331709736,1720675852754,-544.16,0.00029041,7]
[331709737,1720675852763,-627.83,0.00029041,7]
[331709738,1720675852772,-500.0,0.00029041,7]
[331709739,1720675852782,-2577.05,0.00029041,7]
[331709740,1720675852791,-500.0,0.00029041,7]
[331709741,1720675852801,-500.0,0.00029041,7]
[331709742,1720675852811,-513.45,0.00029041,7]
[331709743,1720675852820,-825.42,0.00029041,7]
[331709744,1720675852830,-6376.09,0.00029041,7]
[331709745,1720675852840,-500.0,0.00029041,7]
[331709746,1720675852850,-500.0,0.00029041,7]
[331709747,1720675852860,-562.35,0.00029041,7]
[331709748,1720675852870,-500.0,0.00029041,2]
[331709749,1720675852879,-153.0,0.00029096,2]
[331709750,1720675852889,-153.0,0.00029096,2]
[331709751,1720675852899,-153.0,0.00029096,2]
[331709752,1720675852908,-153.0,0.00029096,2]
[331709753,1720675852917,-153.0,0.00029096,2]
[331709754,1720675852927,-153.0,0.00029096,2]
[331709755,1720675852937,-153.0,0.00029096,2]
[331709756,1720675852946,-153.0,0.00029096,2]
[331709757,1720675852955,-500.0,0.00029315,7]
[331709758,1720675852964,-830.69,0.00029315,7]
[331709759,1720675852974,-692.66,0.00029315,7]
[331709760,1720675852983,-1034.31,0.00029315,7]
[331709761,1720675852992,-500.0,0.00029315,7]
[331709762,1720675853001,-616.81,0.00029315,7]
[331709763,1720675853010,-566.22,0.00029315,7]
[331709764,1720675853019,-554.18,0.00029315,7]
[331709765,1720675853029,-500.0,0.00029315,7]
[331709766,1720675853038,-520.74,0.00029315,7]
[331709767,1720675853047,-882.82,0.00029315,7]
[331709768,1720675853057,-500.0,0.00029315,7]
[331709769,1720675853066,-1567.07,0.00029315,7]
[331709770,1720675853076,-4468.81,0.00029315,7]
[331709771,1720675853086,-500.0,0.00029315,7]
[331709772,1720675853096,-500.0,0.00029315,7]
[331709773,1720675853105,-843.36,0.00029315,7]
[331709774,1720675853115,-1089.85,0.00029315,7]
[331709775,1720675853124,-631.79,0.00029315,7]
[331709776,1720675853133,-500.0,0.00029315,7]
[331709777,1720675853142,-1347.75,0.00029315,4]
[331709778,1720675853151,-500.0,0.00029315,7]
[331709779,1720675853161,-500.0,0.00029315,7]
[331709780,1720675853170,-500.0,0.00029315,7]
[331709781,1720675853179,-2751.95,0.00029315,7]
[331709782,1720675853189,-1505.0,0.00029315,7]
[331709783,1720675853198,-500.0,0.00029315,7]
[331709784,1720675853207,-500.0,0.00029315,7]
[331709785,1720675853217,-500.0,0.00029315,7]
[331709786,1720675853226,-500.0,0.00029315,7]
[331709787,1720675853236,-500.0,0.00029315,7]
[331709788,1720675853245,-1337.17,0.00029315,7]
[331709789,1720675853255,-544.16,0.00029315,7]
[331709790,1720675853264,-627.83,0.00029315,7]
[331709791,1720675853273,-500.0,0.00029315,7]
[331709792,1720675853282,-2577.05,0.00029315,7]
[331709793,1720675853292,-500.0,0.00029315,7]
[331709794,1720675853303,-500.0,0.00029315,7]
[331709795,1720675853314,-513.45,0.00029315,7]
[331709796,1720675853323,-825.42,0.00029315,7]
[331709797,1720675853333,-6376.09,0.00029315,7]
[331709798,1720675853342,-500.0,0.00029315,7]
[331709799,1720675853352,-500.0,0.00029315,7]
[331709800,1720675853361,-562.35,0.00029315,7]
[331709801,1720675853376,-500.0,0.00029315,2]
[331709802,1720675853385,-503.0,0.00029379,2]
[331709803,1720675853397,-500.0,0.00029589,7]
[331709804,1720675853406,-830.69,0.00029589,7]
[331709805,1720675853416,-692.66,0.00029589,7]
[331709806,1720675853425,-1034.31,0.00029589,7]
[331709807,1720675853435,-629.37046633,0.00029589,7]
[331709808,1720675853444,-616.81,0.00029589,7]
[331709809,1720675853453,-566.22,0.00029589,7]
[331709810,1720675853464,-554.18,0.00029589,7]
[331709811,1720675853473,-500.0,0.00029589,7]
[331709812,1720675853482,-520.74,0.00029589,7]
[331709813,1720675853492,-882.82,0.00029589,7]
[331709814,1720675853502,-500.0,0.00029589,7]
[331709815,1720675853511,-1567.07,0.00029589,7]
[331709816,1720675853521,-4468.81,0.00029589,7]
[331709817,1720675853530,-500.0,0.00029589,7]
[331709818,1720675853540,-500.0,0.00029589,7]
[331709819,1720675853550,-843.36,0.00029589,7]
[331709820,1720675853559,-1089.85,0.00029589,7]
[331709821,1720675853568,-631.79,0.00029589,7]
[331709822,1720675853577,-500.0,0.00029589,7]
[331709823,1720675853586,-1347.75,0.00029589,4]
[331709824,1720675853595,-500.0,0.00029589,7]
[331709825,1720675853605,-623.20445111,0.00029589,7]
[331709826,1720675853615,-500.0,0.00029589,7]
[331709827,1720675853624,-2751.95,0.00029589,7]
[331709828,1720675853634,-1505.0,0.00029589,7]
[331709829,1720675853643,-500.0,0.00029589,7]
[331709830,1720675853653,-500.0,0.00029589,7]
[331709831,1720675853662,-500.0,0.00029589,7]
[331709832,1720675853672,-500.0,0.00029589,7]
[331709833,1720675853682,-500.0,0.00029589,7]
[331709834,1720675853692,-1337.17,0.00029589,7]
[331709835,1720675853701,-544.16,0.00029589,7]
[331709836,1720675853711,-627.83,0.00029589,7]
[331709837,1720675853721,-500.0,0.00029589,7]
[331709838,1720675853730,-2577.05,0.00029589,7]
[331709839,1720675853740,-182.83418791,0.00029589,7]
[331709840,1720675853749,-500.0,0.00029589,7]
[331709841,1720675853759,-513.45,0.00029589,7]
[331709842,1720675853770,-825.42,0.00029589,7]
[331709843,1720675853780,-6376.09,0.00029589,7]
[331709844,1720675853790,-500.0,0.00029589,7]
[331709845,1720675853799,-500.0,0.00029589,7]
[331709846,1720675853809,-562.35,0.00029589,7]
[331709847,1720675853818,-500.0,0.00029589,2]
[331709848,1720675853828,-160.0,0.00029796,3]
[331709849,1720675853838,-249.67315643,0.000298,120]
[331709850,1720675853847,-232.2031724,0.00029863,7]
[331709851,1720675853857,-830.69,0.00029863,7]
[331709852,1720675853869,-692.66,0.00029863,7]
[331709853,1720675853879,-1034.31,0.00029863,7]
[331709854,1720675853888,-616.81,0.00029863,7]
[331709855,1720675853897,-566.22,0.00029863,7]
[331709856,1720675853907,-554.18,0.00029863,7]
[331709857,1720675853917,-500.0,0.00029863,7]
[331709858,1720675853926,-520.74,0.00029863,7]
[331709859,1720675853936,-882.82,0.00029863,7]
[331709860,1720675853945,-500.0,0.00029863,7]
[331709861,1720675853954,-1567.07,0.00029863,7]
[331709862,1720675853964,-4468.81,0.00029863,7]
[331709863,1720675853974,-500.0,0.00029863,7]
[331709864,1720675853984,-500.0,0.00029863,7]
[331709865,1720675853993,-843.36,0.00029863,7]
[331709866,1720675854003,-1089.85,0.00029863,7]
[331709867,1720675854012,-631.79,0.00029863,7]
[331709868,1720675854022,-500.0,0.00029863,7]
[331709869,1720675854031,-1347.75,0.00029863,4]
[331709870,1720675854041,-500.0,0.00029863,7]
[331709871,1720675854050,-500.0,0.00029863,7]
[331709872,1720675854060,-2751.95,0.00029863,7]
[331709873,1720675854069,-1505.0,0.00029863,7]
[331709874,1720675854079,-500.0,0.00029863,7]
[331709875,1720675854089,-500.0,0.00029863,7]
[331709876,1720675854098,-500.0,0.00029863,7]
[331709877,1720675854108,-500.0,0.00029863,7]
[331709878,1720675854120,-1337.17,0.00029863,7]
[331709879,1720675854130,-544.16,0.00029863,7]
[331709880,1720675854140,-627.83,0.00029863,7]
[331709881,1720675854149,-500.0,0.00029863,7]
[331709882,1720675854158,-2577.05,0.00029863,7]
[331709883,1720675854168,-566.53666158,0.00029863,7]
[331709884,1720675854177,-513.45,0.00029863,7]
[331709885,1720675854186,-825.42,0.00029863,7]
[331709886,1720675854196,-6376.09,0.00029863,7]
[331709887,1720675854206,-500.0,0.00029863,7]
[331709888,1720675854216,-500.0,0.00029863,7]
[331709889,1720675854226,-562.35,0.00029863,7]
[331709890,1720675854235,-500.0,0.00029863,2]
[331709891,1720675854244,-170.51355908,0.0003,4]
[331709892,1720675854254,-471.75108286,0.0003,4]
[331709893,1720675854263,-1153.89206966,0.0003,2]
[331709894,1720675854273,-154.59033561,0.0003,4]
[331709895,1720675854283,-499.99255164,0.0003,4]
[331709896,1720675854399,-643.7802781,0.0003,4]
[331709897,1720675854409,-8677.91579166,0.0003,5]
[331709898,1720675854419,-500.0,0.0003,2]